Cogmind - Beta 14 @@@ ROGUE MODE // 2024.10.20 @ 19:16:57 Player: APerTAS Result: Destroyed by G-34 Mercenary with Small Laser Performance ------------- Evolutions (0) 0 Regions Visited (1) 200 Robots Destroyed (0) 0 Value Destroyed (0) 0 Prototype IDs (0) 0 Alien Tech Used (0) 0 Bonus (0) 0 TOTAL SCORE: 200 Bonus ------- None Cogmind --------- Core Integrity 0/250 Matter 136/300 Energy 121/125 System Corruption 51% Temperature Cool (8) Movement Walking (120) Location -10/Materials Parts ------- > --- POWER (1) -------- Light Ion Engine > --- PROPULSION (2) --- Aluminum Leg Aluminum Leg > --- UTILITY (2) ------ Targeting Computer > --- WEAPON (2) ------- Light Assault Rifle > --- INVENTORY (5) ---- (None) Peak State ------------ > --- POWER ------------ Light Ion Engine > --- PROPULSION ------- Light Treads Light Treads > --- UTILITY ---------- Small Storage Unit > --- WEAPON ----------- Small Laser Light Assault Rifle > --- INVENTORY -------- (None) [Rating: 6] Favorites ----------- Power Light Ion Engine Engine Light Ion Engine Propulsion Light Treads Treads Light Treads Leg Aluminum Leg Utility Small Storage Unit Storage Small Storage Unit Processor Targeting Computer Weapon Small Laser Energy Gun Small Laser Ballistic Gun Assault Rifle Build | -11 -10 ------- Run | Yrd Mat Slots Evolved . | . . Power . | . . Propulsion . | . . Utility . | . . Weapon . | . . Parts Attached 12 | 10 2 Power 2 | 2 . Engine 2 | 2 . Core . | . . Reactor . | . . Propulsion 4 | 4 . Treads 2 | 2 . Leg 2 | 2 . Wheel . | . . Hover . | . . Flight . | . . Utility 2 | 1 1 Device . | . . Storage 1 | 1 . Processor 1 | . 1 Hackware . | . . Protection . | . . Artifact . | . . Weapon 4 | 3 1 Energy Gun 1 | 1 . Energy Cannon . | . . Ballistic Gun 3 | 2 1 Ballistic Cannon . | . . Launcher . | . . Special Weapon . | . . Impact Weapon . | . . Slashing Weapon . | . . Piercing Weapon . | . . Special Melee Weapon . | . . Unidentified Prototypes . | . . Parts Lost . | . . Power . | . . Propulsion . | . . Utility . | . . Weapon . | . . Highest Loss Streak . | . . To Critical Strikes . | . . Average Slot Usage (%) 67 | . 67 Engine 14 | . 14 Leg 28 | . 28 Processor 10 | . 10 Ballistic Gun 14 | . 14 Peak Build Rating 6 | 6 5 Average Rating 4 | 4 4 On Entrance 1 | . 3 Naked Turns . | . . Heaviest Build 11 | 11 4 Greatest Support 40 | 40 20 Greatest Overweight (x) . | . . Average Overweight (x) . | . . Largest Inventory Capacity 8 | 8 5 Average Capacity 6 | 6 5 Most Carried 1 | 1 . Average Carried . | . . Final Capacity 5 | 5 5 Final Carried 1 | 1 . Class Distribution -------------------- 100% | Mutant Dominant Class ---------------- Mutant | -10/Materials Resources | -11 -10 ----------- Run | Yrd Mat Matter Collected 190 | 190 . Remotely . | . . Salvage Created . | . . Parts . | . . Haulers Intercepted . | . . Recyclers Shooed . | . . Parts Field Recycled . | . . Retrieved Matter . | . . Parts Self-Destructed . | . . Prevented . | . . Kills | -11 -10 ------- Run | Yrd Mat Combat Hostiles Destroyed . | . . Classes Destroyed . | . . Best Kill Streak . | . . Combat Bots Only . | . . Max Kills in Single Turn . | . . Gunslinging . | . . Exploded . | . . Melee . | . . Uniques/NPCs Destroyed . | . . Combat | -11 -10 -------- Run | Yrd Mat Hostile Shots Fired 29 | . 29 Missed 11 | . 11 Damage Taken 505 | 342 163 Core 255 | 221 34 Absorbed by Shields . | . . Core Remaining (%) 11 | 11 . Volleys Fired . | . . Largest . | . . Hottest . | . . Shots Fired . | . . Gun . | . . Cannon . | . . Launcher . | . . Special . | . . Kinetic . | . . Thermal . | . . Explosive . | . . Electromagnetic . | . . Robot Hit Streak . | . . Robot Miss Streak . | . . Penetration Max . | . . Secondary Targets . | . . Shots Hit Robots . | . . Core Hits . | . . Critical Kills . | . . Critical Parts Destroyed . | . . Critical Strikes . | . . Melee Attacks . | . . Impact . | . . Slashing . | . . Piercing . | . . Sneak Attacks . | . . Combat Hostiles . | . . Follow-up Attacks . | . . Damage Inflicted 137 | 137 . Guns . | . . Cannons . | . . Explosions . | . . Melee . | . . Ramming 137 | 137 . Kinetic . | . . Thermal . | . . Explosive . | . . Electromagnetic . | . . Impact . | . . Slashing . | . . Piercing . | . . Highest Corruption 51 | 51 51 Average Corruption 38 | 32 51 Corruption Purged . | . . Corruption Blocked . | . . Effects 14 | 8 6 Message Errors 3 | 3 . Matter Fused 4 | 3 1 Energy Discharges 3 | 1 2 Data Loss (minor) 2 | 1 1 Misdirections 2 | . 2 Overload Shots . | . . Overflow Damage . | . . Projectiles . | . . Explosions . | . . Melee . | . . Knockbacks . | . . Impact . | . . Kinetic . | . . Secondary . | . . Self-Inflicted Damage 137 | 137 . Shots . | . . Rammed . | . . Targets Rammed . | . . Kicked . | . . Crushed . | . . Highest Temperature . | . . Average Temperature . | . . Received Heat Transfer 36 | . 36 Siege Activations . | . . Robots Corrupted . | . . Combat Hostiles . | . . Parts Fried . | . . Impact Corruptions . | . . Robots Melted . | . . Combat Hostiles . | . . Parts Melted . | . . Heat Transferred . | . . Parts Sabotaged . | . . Parts Stolen . | . . Parts Stripped . | . . Power Chain Reactions . | . . Alert | -11 -10 ------- Run | Yrd Mat Peak Influence 15 | . 15 Initial . | . . Average . | . 1 Maximum Alert Level . | . . Low Security (%) 100 | 100 100 Level 1 . | . . Level 2 . | . . Level 3 . | . . Level 4 . | . . Level 5 . | . . High Security . | . . Max Security . | . . Squads Dispatched . | . . Investigation . | . . Extermination . | . . Reinforcement . | . . Assault . | . . Garrison . | . . Intercept . | . . Searches Triggered . | . . Construction Impeded . | . . Haulers Reinforced . | . . Active Scanning Responses . | . . Cargo Convoy Interrupts . | . . Stealth | -11 -10 --------- Run | Yrd Mat Distress Signals 2 | . 2 Communications Jammed . | . . Distress Signals . | . . Times Spotted 10 | . 10 Peak Tracking Total 12 | . 12 Tactical Retreats . | . . Traps | -11 -10 ------- Run | Yrd Mat Traps Triggered . | . . Indirectly . | . . Trap Hack Attempts . | . . Triggered . | . . Disarmed . | . . Reprogrammed . | . . Reused . | . . Traps Extracted . | . . Installed . | . . Triggered . | . . Machines | -11 -10 ---------- Run | Yrd Mat Machines Disabled . | . . Max in Single Turn . | . . Machines Repaired . | . . Machines Dismantled . | . . Machines Sabotaged . | . . Overloaded Fab Kills . | . . Hacking | -11 -10 --------- Run | Yrd Mat Machines Accessed . | . . Terminals . | . . Fabricators . | . . Repair Stations . | . . Recycling Units . | . . Scanalyzers . | . . Garrison Access . | . . Total Hacks . | . . Successful . | . . Failed . | . . Catastrophic . | . . Database Lockouts . | . . Manual . | . . Terminals . | . . Fabricators . | . . Repair Stations . | . . Recycling Units . | . . Scanalyzers . | . . Garrison Access . | . . Terminal Hacks . | . . Fabricator Hacks . | . . Repair Station Hacks . | . . Recycling Unit Hacks . | . . Scanalyzer . | . . Garrison Access Hacks . | . . Unauthorized Hacks . | . . Terminals . | . . Fabricators . | . . Repair Stations . | . . Recycling Units . | . . Scanalyzers . | . . Garrison Access . | . . Data Cores Recovered . | . . Used . | . . Hacking Detections . | . . Full Trace Events . | . . Feedback Events . | . . Feedback Blocked . | . . Robot Schematics Acquired . | . . Robots Built . | . . Authchips . | . . Time . | . . Total Robot Build Rating . | . . Part Schematics Acquired . | . . Parts Built . | . . Authchips . | . . Time . | . . Total Part Build Rating . | . . Parts Repaired . | . . Time . | . . Parts Recycled . | . . Recycled Matter . | . . Retrieved Matter . | . . Retrieved Components . | . . Parts Scanalyzed . | . . Part Schematics Acquired . | . . Parts Damaged . | . . Bothacking | -11 -10 ------------ Run | Yrd Mat Used RIF Installer . | . . Robots Hacked . | . . Non-combat . | . . Combat . | . . Robot Hacks Applied . | . . Relay Couplers Released . | . . Fabnet Peak Effective % . | . . Robots Rewired . | . . Allies Hacked . | . . Hacks Repelled . | . . Allies | -11 -10 -------- Run | Yrd Mat Total Allies . | . . Largest Group . | . . Highest-Rated Group . | . . Highest-Rated Ally . | . . Total Orders . | . . Ally Attacks . | . . Total Damage . | . . Kills . | . . Allies Corrupted . | . . Allies Melted . | . . Intel | -11 -10 ------- Run | Yrd Mat Robot Analysis Total . | . . Derelict Logs Recovered . | . . Drone Launches . | . . Drone Recoveries . | . . Exploration | -11 -10 ------------- Run | Yrd Mat Turns Passed 310 | 236 74 Spaces Moved 147 | 87 60 Core 39 | 39 . Treads 27 | 27 . Legs 81 | 21 60 Wheels . | . . Hover . | . . Flight . | . . Fastest Speed 50 | 50 120 Average Speed 108 | 101 120 Slowest Speed 160 | 160 120 Overloaded Moves . | . . Propulsion Burnouts . | . . Robots Hopped . | . . Cave-ins Triggered . | . . Exploration Rate (%) 14 | 6 22 Regions Visited 1 Branch Regions . Pre-discovered Areas . | . . Known Exits Taken . | . . Unknown Exits Taken 1 | 1 . Scrap Searched . | . . Spaces Dug . | . . Terrain Destroyed . | . . Melee . | . . Projectile . | . . AOE . | . . Terrain Rammed 66 | 66 . Walls Destroyed . | . . Machines Disabled . | . . Actions | -11 -10 --------- Run | Yrd Mat Total 227 | 165 62 Wait 3 | 3 . Move 146 | 86 60 Hop . | . . Pick Up . | . . Fast Attach 10 | 9 1 Attach 1 | . 1 Detach . | . . Swap 1 | 1 . Drop . | . . Fire . | . . Melee . | . . Ram 66 | 66 . Kick . | . . Crush . | . . Escape Stasis . | . . Rewire . | . . Trap . | . . Miscellaneous . | . . Route ------- -11/Scrapyard -10/Materials (discovered 1 exit: [*Min]) History --------- Turn | Location | Event 13 | -11/Scrapyard | Discovered new exit (range 15) 77 | -11/Scrapyard | System corruption reached 10% 137 | -11/Scrapyard | System corruption reached 30% 145 | -11/Scrapyard | Core integrity fell below 50% 181 | -11/Scrapyard | Core integrity fell below 20% 186 | -11/Scrapyard | Released all parts (6) 237 | -11/Scrapyard | Entered Materials 268 | -10/Materials | Discovered new exit (range 9) 311 | -10/Materials | Destroyed by G-34 Mercenary with Small Laser Last Messages --------------- 00288_ System corrupted: Energy discharge (-27). 00288_ U-05 Engineer works on Atomic Centrifuge. 00290_ K-01 Serf collects debris. 00290_ U-05 Engineer destroyed. 00293_ U-05 Engineer completes Atomic Centrifuge. 00294_ K-01 Serf collects debris. 00295_ R-06 Scavenger collects Wheel. 00298_ K-01 Serf collects debris. 00298_ R-06 Scavenger collects Welding Torch. 00299_ R-06 Scavenger collects Lgt. Ion Engine. 00300_ Atomic Centrifuge comes online. 00301_ K-01 Serf collects debris. 00302_ R-06 Scavenger collects Wheel. 00305_ System corrupted: Component data lost. 00305_ K-01 Serf collects debris. 00305_ U-05 Engineer works on Atomic Centrifuge. 00305_ K-01 Serf collects debris. 00305_ W-16 Scout sends out distress signal. 00306_ K-01 Serf collects debris. 00311_ U-05 Engineer works on Atomic Centrifuge. Map ----- +----------------------------------------------------+ | ?????????????????????????????????????????????????? | | ?????????????????????????????????????????????????? | | ?????????????????????????????????????????????????? | | ?????????????????????????????????????????????????? | | ?????????????????????????????????????????????????? | | ?????????????????????????????????????????????????? | | ?????????????????????????????????????????????????? | | ?????????????????????????????????????????????????? | | ?????????????????????????????????????????????????? | | ?????????????????????????????????????????????????? | | ??????????????????????? w ???????????????????????? | | ??????????????????????# s???????????????????????? | | ??????????????????????# ???????????????????????? | | ??????????????????????# ???????????????????????? | | ??????????????????#+??# ???????????????????????? | | ??????????????##### ### #??????????????????????? | | ?????????????? #??????????????????????? | | ??????????????? g #??????????????????????? | | ???????????????? gT #??????????????????????? | | ????????????????## #??????????????????????? | | ???????????????#"" #??????? #?????????????? | | ???????????????#"T!w! #?????? #?????????????? | | ???????????????#""!!! #?????? +?????????????? | | ?????????????????#!! #????? #?????????????? | | ?????????????????# ###### ####??????????? | | ?????????????????# @ s ????????? | | ?????????????????# ss ????????? | | ?????????????????# k ????????? | | ?????????????????# ????????? | | ?????????????????# ????????? | | ????????????????## k#### ???????? | | ????????????????# ""?# ??????? | | ????????????????# ?# ??????? | | ????????????????# |?# ??????? | | ????????????????# < "?#r """ """ u "??????? | | ????????????????# !?#g """ """ u" "??????? | | ????????????????# ??# g""" """ "??????? | | ????????????????# "??# r ??????? | | ?????????????????# #### ??????? | | ?????????????????# k ##???????????? | | ?????????????????# ###????????????? | | ?????????????????# #??????????????? | | ?????????????????# #??????????????? | | ?????????????######+############# #??????????????? | | ?????????????# #??????# #??????????????? | | ?????????????# """"" #??????#/#??????????????? | | ?????????????# """"""""" #?????? ??????????????? | | ?????????????# """ """ #?????? ??????????????? | | ?????????????# #?????? ??????????????? | | ?????????????# ! #?????? ??????????????? | +----------------------------------------------------+ Best States ------------- Heat Dissipation 25 Energy Generation 10 Energy Capacity 125 Matter Stores 202 Matter Capacity 300 Sight Range 16 Terrain Scan Density 10 Evasion (%) 55 Targeting Accuracy 5 Recoil Reduction 2 Item Schematics ----------------- None Robot Schematics ------------------ None Fabricated ------------ Nothing Alien Tech Used ----------------- None Achievements -------------- None Challenges ------------ None Game ------ Seed RecyclingIntegratedMapper Manual? 0 Play Time 00:01:51 Cumulative 39.4 hours Start 2024.10.20 @ 19:15:37 End 2024.10.20 @ 19:16:57 Sessions 1 Manual Loads 0 Difficulty Rogue Special Mode None Game No. 160 Rogue 160 Adventurer 0 Explorer 0 Win Type - Total 0 Types 0/0/0/0/0/0/0/0/0 Lore% 49 Gallery% 34 Achievement% 34 Wizard Run 0 Options --------- Layout 0 ASCII 0 Keyboard 0 Movement Arrows Keybinds 0 Fullscreen 1 Font 24/Terminus Map View 64x52 Zoom Use 0% Tactical HUD 1 Map Filters NONE Filters NONE Steam 1 RUN: bdd947c0-c34e-4192-84b1-a2c80a7f046e